[Event "Dutch Open-ch 2019"]
[Site "Dieren"]
[Date "2019.07.23"]
[Round "1.18"]
[White "Maris, Ivo"]
[Black "Nicolai, Amir"]
[Result "1-0"]
[ECO "A21"]
[WhiteElo "2399"]
[BlackElo "2101"]
[Annotator "NA"]
[PlyCount "81"]
[EventDate "2019.07.23"]
[EventType "swiss"]
[EventCountry "NED"]
[SourceTitle "playchess.com"]
[Source "ChessBase"]
[SourceQuality "1"]
[TimeControl "40/5400+30:1800+30"]

1. c4 {[%emt 0:00:00]} e5 {[%emt 0:00:00]} 2. Nc3 {[%emt 0:00:00]} Nf6 {[%emt 0:00:00]} 3. e3 {[%emt 0:00:12]} Bb4 {[%emt 0:03:21]} 4. Qc2 {[%emt 0:00:35]} O-O {[%emt 0:00:47]} 5. Nf3 {[%emt 0:00:24]} Re8 {[%emt 0:00:35]} 6. Be2 {[%emt 0:07:11]} c6 {[%emt 0:08:41]} 7. a3 {[%emt 0:02:46]} Bxc3 {[%emt 0:05:34]} 8. Qxc3 {[%emt 0:00:24]} Ne4 {[%emt 0:00:21]} 9. Qc2 {[%emt 0:01:02]} d5 {[%emt 0:00:13]} 10. O-O {[%emt 0:06:49]} Bg4 {[%emt 0:13:54]} 11. cxd5 {[%emt 0:08:54]} cxd5 {[%emt 0:03:49]} 12. d4 {[%emt 0:00:24]} Nc6 {[%emt 0:17:22]} 13. dxe5 {[%emt 0:11:42]} Rc8 {[%emt 0:02:25]} 14. Qd1 {[%emt 0:00:19]} Nxe5 {[%emt 0:08:33]} 15. Nd4 {[%emt 0:12:25]} Bxe2 {[%emt 0:02:45]} 16. Qxe2 {[%emt 0:02:59]} Nc6 {[%emt 0:05:19]} 17. Nxc6 {[%emt 0:06:09]} Rxc6 {[%emt 0:01:32]} 18. Qd1 {[%emt 0:08:59]} Qh4 {[%emt 0:07:12]} 19. f3 {[%emt 0:04:58]} Rh6 {[%emt 0:05:03]} 20. h3 {[%emt 0:00:59]} Ng5 {[%emt 0:00:32]} 21. Qe1 {[%emt 0:05:35]} Nxh3+ {[%emt 0:01:55]} 22. Kh2 {[%emt 0:03:53]} Nf2+ {[%emt 0:00:11]} 23. Kg1 {[%emt 0:00:02]} d4 {[%emt 0:00:44]} 24. e4 {[%emt 0:00:23]} Rh5 {[%emt 0:04:22]} 25. Qd2 {[%emt 0:09:34]} d3 {[%emt 0:02:35]} 26. Qf4 {[%emt 0:00:25]} Nh3+ {[%emt 0:01:50]} 27. gxh3 {[%emt 0:00:02]} Qxh3 {[%emt 0:00:10]} 28. Kf2 {[%emt 0:00:29]} Qd7 {[%emt 0:02:00]} 29. Be3 {[%emt 0:00:34]} Qb5 {[%emt 0:01:02]} 30. b4 {[%emt 0:00:18]} a5 {[%emt 0:00:47]} 31. Rab1 {[%emt 0:00:39]} Qa4 {[%emt 0:00:36]} 32. Bd2 {[%emt 0:00:55]} g5 {[%emt 0:00:44]} 33. Rg1 {[%emt 0:01:09]} h6 {[%emt 0:00:35]} 34. bxa5 {[%emt 0:00:21]} Qd4+ {[%emt 0:00:59]} 35. Qe3 {[%emt 0:00:14]} Qd7 {[%emt 0:00:18]} 36. Rh1 {[%emt 0:00:15]} Rxh1 {[%emt 0:00:11]} 37. Rxh1 {[%emt 0:00:02]} Re6 {[%emt 0:00:11]} 38. Bc3 {[%emt 0:00:29]} Rd6 {[%emt 0:00:30]} 39. Qxg5+ {[%emt 0:00:14]} Rg6 {[%emt 0:00:21]} 40. Rxh6 {[%emt 0:00:11]} Rxg5 {[%emt 0:00:05]} 41. Rh8# {[%emt 0:30:04]} 1-0

[Event "Dutch Open-ch 2019"]
[Site "Dieren"]
[Date "2019.07.23"]
[Round "1.19"]
[White "Dwarshuis, Arjan"]
[Black "Zwirs, Nico"]
[Result "0-1"]
[ECO "A58"]
[WhiteElo "2091"]
[BlackElo "2380"]
[Annotator "NA"]
[PlyCount "88"]
[EventDate "2019.07.23"]
[EventType "swiss"]
[EventCountry "NED"]
[SourceTitle "playchess.com"]
[Source "ChessBase"]
[SourceQuality "1"]
[TimeControl "40/5400+30:1800+30"]

1. d4 {[%emt 0:00:00]} Nf6 {[%emt 0:00:00]} 2. c4 {[%emt 0:00:00]} c5 {[%emt 0:04:03]} 3. d5 {[%emt 0:02:34]} b5 {[%emt 0:00:26]} 4. cxb5 {[%emt 0:00:29]} a6 {[%emt 0:00:16]} 5. bxa6 {[%emt 0:00:22]} e6 {[%emt 0:00:21]} 6. Nc3 {[%emt 0:03:51]} exd5 {[%emt 0:09:23]} 7. Nxd5 {[%emt 0:02:40]} Nxd5 {[%emt 0:02:28]} 8. Qxd5 {[%emt 0:00:06]} Nc6 {[%emt 0:00:06]} 9. e4 {[%emt 0:09:18]} Be7 {[%emt 0:02:06]} 10. Nf3 {[%emt 0:15:40]} O-O {[%emt 0:02:58]} 11. Be2 {[%emt 0:05:01]} Bxa6 {[%emt 0:17:01]} 12. Bxa6 {[%emt 0:01:45]} Qa5+ {[%emt 0:00:39]} 13. Qd2 {[%emt 0:01:00]} Qxa6 {[%emt 0:00:06]} 14. Qe2 {[%emt 0:00:11]} Rfb8 {[%emt 0:05:51]} 15. Qxa6 {[%emt 0:01:32]} Rxa6 {[%emt 0:00:25]} 16. O-O {[%emt 0:10:38]} Bf6 {[%emt 0:14:25]} 17. g3 {[%emt 0:09:56]} Nd4 {[%emt 0:13:30]} 18. Nxd4 {[%emt 0:03:56]} Bxd4 {[%emt 0:00:11]} 19. Kg2 {[%emt 0:03:28]} Re6 {[%emt 0:06:23]} 20. f3 {[%emt 0:07:23]} f5 {[%emt 0:00:21]} 21. a4 {[%emt 0:07:21]} fxe4 {[%emt 0:05:02]} 22. fxe4 {[%emt 0:00:15]} Rxe4 {[%emt 0:01:52]} 23. a5 {[%emt 0:01:33]} Ra8 {[%emt 0:01:11]} 24. Ra2 {[%emt 0:05:47]} Re2+ {[%emt 0:01:37]} 25. Kf3 {[%emt 0:00:55]} Rxh2 {[%emt 0:00:34]} 26. Ke4 {[%emt 0:01:42]} Re2+ {[%emt 0:01:05]} 27. Kd5 {[%emt 0:00:53]} Re5+ {[%emt 0:03:52]} 28. Kd6 {[%emt 0:01:51]} Re6+ {[%emt 0:04:17]} 29. Kd5 {[%emt 0:02:19]} Re5+ {[%emt 0:01:43]} 30. Kd6 {[%emt 0:00:06]} Ra7 {[%emt 0:00:37]} 31. Bf4 {[%emt 0:00:57]} Re6+ {[%emt 0:00:04]} 32. Kd5 {[%emt 0:00:03]} Rea6 {[%emt 0:02:05]} 33. Bd6 {[%emt 0:00:39]} Bf6 {[%emt 0:00:29]} 34. Rfa1 {[%emt 0:01:27]} c4 {[%emt 0:00:46]} 35. Bc5 {[%emt 0:00:27]} Rc7 {[%emt 0:00:29]} 36. Bb6 {[%emt 0:00:07]} Rc6 {[%emt 0:00:08]} 37. Bc5 {[%emt 0:01:21]} Kf7 {[%emt 0:00:59]} 38. Rc1 {[%emt 0:00:10]} Bd8 {[%emt 0:00:24]} 39. Rxc4 {[%emt 0:00:34]} Rxa5 {[%emt 0:00:28]} 40. Rxa5 {[%emt 0:00:25]} Bxa5 {[%emt 0:00:01]} 41. b4 {[%emt 0:03:25]} Bc7 {[%emt 0:05:36]} 42. g4 {[%emt 0:03:51]} Rg6 {[%emt 0:05:03]} 43. Re4 {[%emt 0:03:02]} Rg5+ {[%emt 0:01:01]} 44. Kc4 {[%emt 0:00:37]} d5+ {[%emt 0:00:30]} 0-1

[Event "Dutch Open-ch 2019"]
[Site "Dieren"]
[Date "2019.07.23"]
[Round "1.20"]
[White "Ashwath, R.."]
[Black "Grutter, Tim"]
[Result "1-0"]
[ECO "E63"]
[WhiteElo "2365"]
[BlackElo "2091"]
[Annotator "NA"]
[PlyCount "81"]
[EventDate "2019.07.23"]
[EventType "swiss"]
[EventCountry "NED"]
[SourceTitle "playchess.com"]
[Source "ChessBase"]
[SourceQuality "1"]
[TimeControl "40/5400+30:1800+30"]

1. d4 {[%emt 0:00:13]} Nf6 {[%emt 0:00:00]} 2. c4 {[%emt 0:00:34]} g6 {[%emt 0:00:00]} 3. g3 {[%emt 0:00:15]} Bg7 {[%emt 0:00:12]} 4. Bg2 {[%emt 0:00:06]} O-O {[%emt 0:00:10]} 5. Nc3 {[%emt 0:00:20]} d6 {[%emt 0:00:18]} 6. Nf3 {[%emt 0:00:14]} Nc6 {[%emt 0:00:19]} 7. O-O {[%emt 0:00:35]} a6 {[%emt 0:00:15]} 8. h3 {[%emt 0:00:38]} Rb8 {[%emt 0:00:29]} 9. Be3 {[%emt 0:00:32]} b5 {[%emt 0:05:34]} 10. Nd2 {[%emt 0:00:48]} Bd7 {[%emt 0:04:09]} 11. Rc1 {[%emt 0:01:34]} e5 {[%emt 0:15:42]} 12. dxe5 {[%emt 0:01:06]} Nxe5 {[%emt 0:04:03]} 13. b3 {[%emt 0:14:24]} bxc4 {[%emt 0:20:29]} 14. f4 {[%emt 0:07:29]} Nc6 {[%emt 0:01:14]} 15. Nxc4 {[%emt 0:00:30]} Ne7 {[%emt 0:05:36]} 16. Bf2 {[%emt 0:03:48]} Bc6 {[%emt 0:04:58]} 17. e4 {[%emt 0:06:27]} Nd7 {[%emt 0:13:06]} 18. Na5 {[%emt 0:12:37]} Bb5 {[%emt 0:02:59]} 19. Nxb5 {[%emt 0:05:29]} Rxb5 {[%emt 0:01:45]} 20. Nc6 {[%emt 0:03:08]} Nxc6 {[%emt 0:00:47]} 21. Rxc6 {[%emt 0:00:03]} Nb8 {[%emt 0:01:26]} 22. Rc4 {[%emt 0:04:18]} a5 {[%emt 0:03:43]} 23. Qd3 {[%emt 0:11:08]} Rb4 {[%emt 0:02:49]} 24. Rfc1 {[%emt 0:06:55]} Rxc4 {[%emt 0:01:48]} 25. Qxc4 {[%emt 0:01:46]} c6 {[%emt 0:01:18]} 26. Kh2 {[%emt 0:05:32]} h5 {[%emt 0:01:10]} 27. Rd1 {[%emt 0:00:47]} Qc7 {[%emt 0:01:33]} 28. Bd4 {[%emt 0:01:09]} Bxd4 {[%emt 0:01:06]} 29. Qxd4 {[%emt 0:00:07]} Rd8 {[%emt 0:00:09]} 30. f5 {[%emt 0:02:41]} Qe7 {[%emt 0:04:05]} 31. e5 {[%emt 0:01:36]} d5 {[%emt 0:00:34]} 32. Re1 {[%emt 0:00:45]} c5 {[%emt 0:00:52]} 33. Qf4 {[%emt 0:00:23]} d4 {[%emt 0:02:42]} 34. f6 {[%emt 0:01:18]} Qf8 {[%emt 0:00:20]} 35. e6 {[%emt 0:00:42]} fxe6 {[%emt 0:00:11]} 36. Rxe6 {[%emt 0:00:25]} Rd7 {[%emt 0:01:27]} 37. Qg5 {[%emt 0:00:39]} Kh7 {[%emt 0:00:40]} 38. Be4 {[%emt 0:00:38]} Qf7 {[%emt 0:00:14]} 39. Qxh5+ {[%emt 0:00:32]} Kg8 {[%emt 0:00:01]} 40. Qe5 {[%emt 0:00:19]} Kf8 {[%emt 0:00:58]} 41. Qxb8+ {[%emt 0:30:15]} 1-0

[Event "Dutch Open-ch 2019"]
[Site "Dieren"]
[Date "2019.07.24"]
[Round "2.2"]
[White "Maatman, Nick"]
[Black "David, Alberto"]
[Result "0-1"]
[ECO "B27"]
[WhiteElo "2407"]
[BlackElo "2553"]
[Annotator "ChessBase"]
[PlyCount "114"]
[EventDate "2019.07.23"]
[EventType "swiss"]
[EventCountry "NED"]
[SourceTitle "playchess.com"]
[Source "ChessBase"]
[SourceQuality "1"]
[TimeControl "40/5400+30:1800+30"]

1. Nf3 {[%emt 0:00:26]} b6 {[%emt 0:04:47]} 2. e4 {[%emt 0:04:19]} Bb7 {[%emt 0:00:05]} 3. Nc3 {[%emt 0:02:27]} c5 {[%emt 0:00:09]} 4. d4 {[%emt 0:00:44]} cxd4 {[%emt 0:00:05]} 5. Nxd4 {[%emt 0:00:03]} a6 {[%emt 0:00:05]} 6. Bg5 {[%emt 0:19:32]} Qc7 {[%emt 0:01:24]} 7. Qe2 {[%emt 0:04:14]} h6 {[%emt 0:06:47]} 8. Bh4 {[%emt 0:02:14]} Nf6 {[%emt 0:25:05]} 9. e5 {[%emt 0:07:15]} Ne4 {[%emt 0:04:27]} 10. Nxe4 {[%emt 0:05:08]} Qxe5 {[%emt 0:01:18]} 11. f3 {[%emt 0:08:35]} Qxd4 {[%emt 0:01:18]} 12. Rd1 {[%emt 0:01:42]} Qe5 {[%emt 0:00:58]} 13. Bg3 {[%emt 0:00:28]} Qe6 {[%emt 0:00:15]} 14. Rd3 {[%emt 0:05:41]} Bxe4 {[%emt 0:02:18]} 15. Qxe4 {[%emt 0:06:13]} Qxe4+ {[%emt 0:00:04]} 16. fxe4 {[%emt 0:00:04]} e6 {[%emt 0:05:22]} 17. Be2 {[%emt 0:04:01]} Nc6 {[%emt 0:14:33]} 18. Rf1 {[%emt 0:03:48]} Be7 {[%emt 0:03:58]} 19. c3 {[%emt 0:05:17]} b5 {[%emt 0:01:46]} 20. b4 {[%emt 0:02:45]} Rc8 {[%emt 0:10:32]} 21. a4 {[%emt 0:01:59]} Bf6 {[%emt 0:09:55]} 22. axb5 {[%emt 0:00:22]} axb5 {[%emt 0:00:03]} 23. Rdf3 {[%emt 0:04:45]} Ne5 {[%emt 0:01:24]} 24. Bxe5 {[%emt 0:01:35]} Bxe5 {[%emt 0:00:02]} 25. Kd2 {[%emt 0:00:20]} Ra8 {[%emt 0:01:47]} 26. Bxb5 {[%emt 0:04:10]} Ra2+ {[%emt 0:00:03]} 27. Kd3 {[%emt 0:00:07]} O-O {[%emt 0:00:05]} 28. R1f2 {[%emt 0:01:33]} Ra3 {[%emt 0:01:08]} 29. Kc2 {[%emt 0:00:26]} Bxc3 {[%emt 0:02:06]} 30. Bxd7 {[%emt 0:01:15]} Bxb4 {[%emt 0:00:25]} 31. Rxa3 {[%emt 0:00:47]} Bxa3 {[%emt 0:00:02]} 32. Kd1 {[%emt 0:01:17]} Bd6 {[%emt 0:00:57]} 33. Rc2 {[%emt 0:02:03]} Bxh2 {[%emt 0:01:29]} 34. Rc8 {[%emt 0:00:03]} Rxc8 {[%emt 0:00:07]} 35. Bxc8 {[%emt 0:00:02]} h5 {[%emt 0:01:19]} 36. Ke2 {[%emt 0:00:06]} g5 {[%emt 0:00:45]} 37. Ba6 {[%emt 0:01:14]} Kg7 {[%emt 0:00:30]} 38. Bb5 {[%emt 0:00:24]} g4 {[%emt 0:00:22]} 39. Kf1 {[%emt 0:01:09]} Bg3 {[%emt 0:00:34]} 40. Ba4 {[%emt 0:00:34]} Kf6 {[%emt 0:00:23]} 41. Be8 {[%emt 0:30:19]} Ke7 {[%emt 0:30:08]} 42. Ba4 {[%emt 0:00:09]} Be5 {[%emt 0:01:35]} 43. Kg1 {[%emt 0:01:17]} Bd4+ {[%emt 0:00:27]} 44. Kf1 {[%emt 0:00:00]} Kf6 {[%emt 0:00:00]} 45. Be8 {[%emt 0:00:00]} h4 {[%emt 0:00:00]} 46. Ke2 {[%emt 0:00:00]} Bb6 {[%emt 0:01:17]} 47. Kf1 {[%emt 0:00:00]} Ba5 {[%emt 0:00:23]} 48. Ke2 {[%emt 0:00:00]} Kg5 {[%emt 0:00:18]} 49. Bxf7 {[%emt 0:00:00]} e5 {[%emt 0:00:03]} 50. g3 {[%emt 0:00:00]} h3 {[%emt 0:00:04]} 51. Kf1 {[%emt 0:00:00]} Be1 {[%emt 0:00:06]} 52. Kg1 {[%emt 0:00:00]} Bxg3 {[%emt 0:00:03]} 53. Be6 {[%emt 0:00:00]} Kf4 {[%emt 0:00:19]} 54. Bd7 {[%emt 0:00:00]} Kf3 {[%emt 0:00:22]} 55. Kh1 {[%emt 0:00:00]} Bf4 {[%emt 0:00:10]} 56. Bc8 {[%emt 0:00:00]} Kg3 {[%emt 0:00:05]} 57. Bd7 {[%emt 0:00:00]} Kh4 {[%emt 0:00:07]} 0-1

[Event "Dutch Open-ch 2019"]
[Site "Dieren"]
[Date "2019.07.24"]
[Round "2.3"]
[White "Pruijssers, Roeland"]
[Black "Maris, Ivo"]
[Result "1-0"]
[ECO "B08"]
[WhiteElo "2534"]
[BlackElo "2399"]
[Annotator "ChessBase"]
[PlyCount "151"]
[EventDate "2019.07.23"]
[EventType "swiss"]
[EventCountry "NED"]
[SourceTitle "playchess.com"]
[Source "ChessBase"]
[SourceQuality "1"]
[TimeControl "40/5400+30:1800+30"]

1. e4 {[%emt 0:00:00]} g6 {[%emt 0:03:07]} 2. d4 {[%emt 0:00:00]} Bg7 {[%emt 0:00:09]} 3. Nc3 {[%emt 0:00:04]} c6 {[%emt 0:00:12]} 4. Bc4 {[%emt 0:01:04]} d6 {[%emt 0:03:20]} 5. Nf3 {[%emt 0:05:54]} Nf6 {[%emt 0:03:13]} 6. Bb3 {[%emt 0:00:16]} O-O {[%emt 0:01:04]} 7. O-O {[%emt 0:02:19]} Bg4 {[%emt 0:00:47]} 8. h3 {[%emt 0:01:33]} Bxf3 {[%emt 0:01:51]} 9. Qxf3 {[%emt 0:00:06]} Nbd7 {[%emt 0:05:00]} 10. Be3 {[%emt 0:04:12]} e5 {[%emt 0:04:27]} 11. Rad1 {[%emt 0:00:09]} Qe7 {[%emt 0:01:05]} 12. Rfe1 {[%emt 0:05:50]} h6 {[%emt 0:08:34]} 13. a3 {[%emt 0:07:55]} Kh8 {[%emt 0:02:56]} 14. Qe2 {[%emt 0:03:46]} Nh5 {[%emt 0:07:22]} 15. dxe5 {[%emt 0:08:43]} dxe5 {[%emt 0:02:18]} 16. Qd2 {[%emt 0:00:38]} Nc5 {[%emt 0:00:27]} 17. Bxh6 {[%emt 0:01:33]} Nxb3 {[%emt 0:01:37]} 18. cxb3 {[%emt 0:00:09]} Rfd8 {[%emt 0:00:27]} 19. Qe3 {[%emt 0:03:02]} Bxh6 {[%emt 0:05:24]} 20. Qxh6+ {[%emt 0:00:09]} Kg8 {[%emt 0:00:01]} 21. Qe3 {[%emt 0:02:48]} Nf4 {[%emt 0:01:00]} 22. Ne2 {[%emt 0:05:51]} Ne6 {[%emt 0:01:58]} 23. g3 {[%emt 0:00:58]} Rxd1 {[%emt 0:07:22]} 24. Rxd1 {[%emt 0:00:07]} Rd8 {[%emt 0:00:02]} 25. Rd3 {[%emt 0:03:41]} Rxd3 {[%emt 0:02:03]} 26. Qxd3 {[%emt 0:00:07]} Nc5 {[%emt 0:00:12]} 27. Qc2 {[%emt 0:01:15]} Qd6 {[%emt 0:02:05]} 28. b4 {[%emt 0:01:38]} Ne6 {[%emt 0:00:09]} 29. Kg2 {[%emt 0:00:31]} Kg7 {[%emt 0:01:32]} 30. h4 {[%emt 0:01:01]} Qd7 {[%emt 0:02:58]} 31. Qc3 {[%emt 0:01:15]} f6 {[%emt 0:02:01]} 32. Qe3 {[%emt 0:01:59]} b6 {[%emt 0:01:49]} 33. Nc3 {[%emt 0:01:31]} Qd6 {[%emt 0:02:59]} 34. b5 {[%emt 0:06:27]} cxb5 {[%emt 0:03:49]} 35. Nxb5 {[%emt 0:00:59]} Qd1 {[%emt 0:00:46]} 36. Qf3 {[%emt 0:05:06]} Qd2 {[%emt 0:03:04]} 37. Nc3 {[%emt 0:08:48]} Nd4 {[%emt 0:01:52]} 38. Qg4 {[%emt 0:00:26]} Nc2 {[%emt 0:00:16]} 39. Qe2 {[%emt 0:06:29]} Qc1 {[%emt 0:04:46]} 40. Nd5 {[%emt 0:01:17]} Nd4 {[%emt 0:13:22]} 41. Qg4 {[%emt 0:31:45]} Qc6 {[%emt 0:31:26]} 42. h5 {[%emt 0:00:00]} g5 {[%emt 0:00:00]} 43. Ne3 {[%emt 0:00:00]} Kh7 {[%emt 0:00:00]} 44. Kh2 {[%emt 0:00:00]} a5 {[%emt 0:00:00]} 45. Nf5 {[%emt 0:00:00]} Qc8 {[%emt 0:00:00]} 46. Ne3 {[%emt 0:00:00]} Qc6 {[%emt 0:00:00]} 47. Nd5 {[%emt 0:00:00]} f5 {[%emt 0:00:00]} 48. Qd1 {[%emt 0:00:00]} g4 {[%emt 0:00:00]} 49. Nc3 {[%emt 0:00:00]} Kh6 {[%emt 0:00:00]} 50. Kg2 {[%emt 0:00:00]} fxe4 {[%emt 0:00:00]} 51. Qxg4 {[%emt 0:00:00]} e3+ {[%emt 0:00:54]} 52. f3 {[%emt 0:00:00]} b5 {[%emt 0:00:29]} 53. Ne4 {[%emt 0:03:07]} e2 {[%emt 0:01:35]} 54. Qg5+ {[%emt 0:01:43]} Kh7 {[%emt 0:00:01]} 55. Qe7+ {[%emt 0:00:07]} Kg8 {[%emt 0:01:27]} 56. Ng5 {[%emt 0:00:39]} Qh6 {[%emt 0:01:16]} 57. Qf7+ {[%emt 0:03:21]} Kh8 {[%emt 0:00:01]} 58. Qe8+ {[%emt 0:00:10]} Kg7 {[%emt 0:00:02]} 59. Qxe5+ {[%emt 0:00:18]} Kf8 {[%emt 0:00:04]} 60. Qf4+ {[%emt 0:04:43]} Ke8 {[%emt 0:01:26]} 61. Qe5+ {[%emt 0:01:45]} Kf8 {[%emt 0:00:04]} 62. Kf2 {[%emt 0:00:06]} Qxg5 {[%emt 0:00:07]} 63. Qxd4 {[%emt 0:00:09]} Qxg3+ {[%emt 0:00:16]} 64. Kxg3 {[%emt 0:00:30]} e1=Q+ {[%emt 0:05:26]} 65. Kg4 {[%emt 0:00:14]} Kf7 {[%emt 0:00:00]} 66. Qd5+ {[%emt 0:00:16]} Kf6 {[%emt 0:00:00]} 67. Qf5+ {[%emt 0:00:44]} Kg7 {[%emt 0:00:00]} 68. Qg5+ {[%emt 0:01:12]} Kf7 {[%emt 0:00:00]} 69. Qf5+ {[%emt 0:01:04]} Kg7 {[%emt 0:00:00]} 70. Qxb5 {[%emt 0:00:15]} Qg1+ {[%emt 0:00:00]} 71. Kf5 {[%emt 0:00:02]} Qb1+ {[%emt 0:00:00]} 72. Ke6 {[%emt 0:00:10]} Qa2+ {[%emt 0:00:00]} 73. Qd5 {[%emt 0:00:09]} Qb1 {[%emt 0:00:00]} 74. Qg5+ {[%emt 0:00:13]} Kh8 {[%emt 0:00:00]} 75. Qh6+ {[%emt 0:00:05]} Kg8 {[%emt 0:00:00]} 76. Qg6+ {[%emt 0:00:05]} 1-0

[Event "Dutch Open-ch 2019"]
[Site "Dieren"]
[Date "2019.07.24"]
[Round "2.4"]
[White "Zwirs, Nico"]
[Black "Van Foreest, Lucas"]
[Result "1/2-1/2"]
[ECO "C55"]
[WhiteElo "2380"]
[BlackElo "2521"]
[Annotator "ChessBase"]
[PlyCount "110"]
[EventDate "2019.07.23"]
[EventType "swiss"]
[EventCountry "NED"]
[SourceTitle "playchess.com"]
[Source "ChessBase"]
[SourceQuality "1"]
[TimeControl "40/5400+30:1800+30"]

1. e4 {[%emt 0:00:00]} e5 {[%emt 0:00:00]} 2. Nf3 {[%emt 0:00:00]} Nc6 {[%emt 0:00:00]} 3. Bc4 {[%emt 0:00:00]} Nf6 {[%emt 0:00:00]} 4. d3 {[%emt 0:00:06]} Be7 {[%emt 0:00:00]} 5. O-O {[%emt 0:00:21]} O-O {[%emt 0:00:00]} 6. Re1 {[%emt 0:00:16]} d6 {[%emt 0:00:00]} 7. a4 {[%emt 0:00:08]} Kh8 {[%emt 0:00:00]} 8. Nc3 {[%emt 0:04:13]} Ng8 {[%emt 1:34:00]} 9. d4 {[%emt 1:29:26]} Bg4 {[%emt 0:00:00]} 10. dxe5 {[%emt 0:00:00]} Nxe5 {[%emt 0:00:00]} 11. Be2 {[%emt 0:00:00]} Bxf3 {[%emt 0:00:00]} 12. Bxf3 {[%emt 0:00:00]} Bg5 {[%emt 0:00:00]} 13. Be2 {[%emt 0:00:00]} Ng6 {[%emt 0:00:00]} 14. Bd3 {[%emt 0:00:00]} a5 {[%emt 0:00:00]} 15. Qh5 {[%emt 0:00:00]} Bxc1 {[%emt 0:00:00]} 16. Raxc1 {[%emt 0:00:00]} Nf6 {[%emt 0:00:00]} 17. Qg5 {[%emt 0:00:00]} c6 {[%emt 0:00:00]} 18. Rcd1 {[%emt 0:00:00]} Qb6 {[%emt 0:00:00]} 19. b3 {[%emt 0:00:00]} Rad8 {[%emt 0:00:00]} 20. Qe3 {[%emt 0:00:00]} Qxe3 {[%emt 0:00:00]} 21. Rxe3 {[%emt 0:00:00]} Rfe8 {[%emt 0:06:30]} 22. Ree1 {[%emt 0:00:00]} Nf4 {[%emt 0:00:00]} 23. Bf1 {[%emt 0:00:00]} Kg8 {[%emt 0:00:00]} 24. g3 {[%emt 0:00:00]} Ne6 {[%emt 0:00:00]} 25. f3 {[%emt 0:00:00]} Kf8 {[%emt 0:00:00]} 26. Kf2 {[%emt 0:00:00]} d5 {[%emt 0:00:00]} 27. exd5 {[%emt 0:00:00]} Nxd5 {[%emt 0:00:00]} 28. Nxd5 {[%emt 0:00:00]} cxd5 {[%emt 0:00:00]} 29. Rd2 {[%emt 0:00:00]} Rd6 {[%emt 0:00:00]} 30. Red1 {[%emt 0:00:00]} Red8 {[%emt 0:00:00]} 31. Bc4 {[%emt 0:00:00]} Nc7 {[%emt 0:00:00]} 32. f4 {[%emt 0:00:00]} Ke7 {[%emt 0:00:00]} 33. Be2 {[%emt 0:00:00]} Rc6 {[%emt 0:00:00]} 34. Bf3 {[%emt 0:00:00]} Rc3 {[%emt 0:00:00]} 35. Re1+ {[%emt 0:00:00]} Kf8 {[%emt 0:00:00]} 36. Re3 {[%emt 0:00:00]} Rxe3 {[%emt 0:00:00]} 37. Kxe3 {[%emt 0:00:00]} Ke7 {[%emt 0:00:00]} 38. h4 {[%emt 0:08:08]} Kd6 {[%emt 0:00:00]} 39. Rd3 {[%emt 0:06:14]} Rd7 {[%emt 0:00:00]} 40. Kd2 {[%emt 0:00:30]} Kc5 {[%emt 0:00:00]} 41. Re3 {[%emt 0:02:21]} Kd6 {[%emt 0:00:00]} 42. Re5 {[%emt 0:03:00]} g6 {[%emt 0:00:00]} 43. h5 {[%emt 0:03:27]} b6 {[%emt 0:00:00]} 44. c3 {[%emt 0:02:13]} Re7 {[%emt 0:00:00]} 45. Rxe7 {[%emt 0:04:47]} Kxe7 {[%emt 0:00:00]} 46. Ke3 {[%emt 0:00:30]} Kd6 {[%emt 0:00:00]} 47. Be2 {[%emt 0:05:09]} Ne8 {[%emt 0:00:00]} 48. Bd3 {[%emt 0:04:42]} Nf6 {[%emt 0:00:00]} 49. hxg6 {[%emt 0:00:07]} hxg6 {[%emt 0:00:00]} 50. b4 {[%emt 0:01:11]} Nh5 {[%emt 0:00:00]} 51. Kf3 {[%emt 0:00:32]} Ng7 {[%emt 0:00:00]} 52. Ke3 {[%emt 0:01:00]} Nh5 {[%emt 0:00:00]} 53. Kf3 {[%emt 0:00:30]} Ng7 {[%emt 0:00:00]} 54. Ke3 {[%emt 0:00:02]} Ne6 {[%emt 0:00:00]} 55. Bb5 {[%emt 0:03:17]} Ng7 {[%emt 0:00:00]} 1/2-1/2

[Event "Dutch Open-ch 2019"]
[Site "Dieren"]
[Date "2019.07.24"]
[Round "2.5"]
[White "Ikonnikov, Vyacheslav"]
[Black "Ashwath, R.."]
[Result "1/2-1/2"]
[ECO "D52"]
[WhiteElo "2499"]
[BlackElo "2365"]
[Annotator "ChessBase"]
[PlyCount "40"]
[EventDate "2019.07.23"]
[EventType "swiss"]
[EventCountry "NED"]
[SourceTitle "playchess.com"]
[Source "ChessBase"]
[SourceQuality "1"]
[TimeControl "40/5400+30:1800+30"]

1. d4 {[%emt 0:00:00]} Nf6 {[%emt 0:04:19]} 2. Nf3 {[%emt 0:00:00]} d5 {[%emt 0:00:08]} 3. c4 {[%emt 0:00:06]} e6 {[%emt 0:00:07]} 4. Nc3 {[%emt 0:00:24]} Bb4 {[%emt 0:00:05]} 5. Bg5 {[%emt 0:00:44]} Nbd7 {[%emt 0:00:11]} 6. cxd5 {[%emt 0:01:31]} exd5 {[%emt 0:00:10]} 7. Rc1 {[%emt 0:00:14]} c6 {[%emt 0:00:54]} 8. e3 {[%emt 0:01:00]} Qa5 {[%emt 0:00:14]} 9. Qb3 {[%emt 0:01:13]} Ne4 {[%emt 0:01:16]} 10. Bd3 {[%emt 0:00:47]} Nxg5 {[%emt 0:15:20]} 11. Nxg5 {[%emt 0:00:24]} h6 {[%emt 0:01:00]} 12. Nf3 {[%emt 0:01:02]} O-O {[%emt 0:00:39]} 13. O-O {[%emt 0:00:41]} Bd6 {[%emt 0:09:38]} 14. Qc2 {[%emt 0:06:14]} Nf6 {[%emt 0:03:37]} 15. h3 {[%emt 0:00:46]} Re8 {[%emt 0:01:50]} 16. Rb1 {[%emt 0:02:46]} Bd7 {[%emt 0:07:10]} 17. a3 {[%emt 0:04:52]} Qd8 {[%emt 0:05:26]} 18. Rfe1 {[%emt 0:01:46]} Rc8 {[%emt 0:07:08]} 19. b4 {[%emt 0:01:37]} b6 {[%emt 0:01:51]} 20. Bf5 {[%emt 0:13:23]} Ne4 {[%emt 0:09:49]} 1/2-1/2